bitfinex/quotes_ETHUSD_20260109
["timestamp","ask_amount","ask_price","bid_price","bid_amount"]
[1767978093485,7.29854828,3131.1,3130.0,4.11278174]
[1767978093780,4.1047701,3131.1,3130.0,4.11278174]
[1767978093956,7.29854828,3131.1,3130.1,0.41127817]
[1767978095375,4.1047701,3131.1,3130.2,3.19468404]
[1767978096003,3.19577818,3131.1,3130.2,4.1118672]
[1767978096167,3.19579298,3131.1,3130.2,4.1118672]
[1767978096364,3.19579298,3131.1,3130.3,0.91718316]
[1767978096568,3.19579298,3131.1,3130.4,0.41118672]
[1767978097606,0.002,3131.1,3130.4,0.41118672]
[1767978098697,0.91099192,3131.1,3130.2,0.251]
[1767978099577,3.19386777,3131.0,3130.2,3.44561222]
[1767978100187,3.19386777,3131.0,3130.2,0.251]
[1767978100589,6.38773554,3131.0,3130.2,0.251]
[1767978101294,7.29672746,3131.0,3130.2,0.251]
[1767978101598,7.29672746,3131.0,3130.4,0.001]
[1767978101900,0.002,3130.8,3130.4,0.001]
[1767978105210,0.91099192,3130.8,3130.4,0.001]
[1767978105521,0.90999192,3130.4,3129.6,0.24727986]
[1767978105679,0.9107924,3130.4,3129.3,0.0008032]
[1767978105880,0.90899192,3130.2,3129.3,0.0008032]
[1767978106123,7.31171756,3129.9,3129.3,0.0008032]
[1767978106284,0.92254026,3129.7,3128.9,0.00180312]
[1767978106778,0.92173706,3129.5,3128.9,0.00180312]
[1767978107105,0.90899192,3129.3,3128.9,0.00180312]
[1767978107305,0.01274514,3129.5,3128.9,0.00180312]
[1767978107504,0.92173706,3129.5,3128.9,0.00180312]
[1767978108188,0.94983414,3129.3,3128.9,0.00180312]
[1767978108387,3.19542867,3129.5,3128.9,0.00180312]
[1767978108609,3.19602577,3129.7,3128.9,0.00180312]
[1767978108610,3.19605577,3129.7,3128.9,0.00180312]
[1767978108910,0.94983414,3129.6,3128.9,0.00180312]
[1767978109689,0.0008032,3129.7,3128.9,0.00180312]
[1767978110287,0.0008032,3129.7,3128.9,3.19781449]
[1767978110490,0.0008032,3129.7,3129.0,0.34488145]
[1767978112613,0.95063734,3129.7,3129.0,0.34488145]
[1767978112816,0.95063734,3129.7,3128.9,0.00180312]
[1767978114218,0.95063734,3129.7,3129.2,0.001]
[1767978114416,0.94983414,3129.5,3129.2,0.001]
[1767978114716,6.4037466,3129.4,3129.2,0.001]
[1767978114905,0.00081526,3128.7,3128.1,0.94017047]
[1767978115214,0.00080312,3129.3,3128.5,0.94135103]
[1767978115388,0.00080312,3129.3,3128.6,0.94135103]
[1767978116790,0.00080312,3129.3,3128.6,4.1376674]
[1767978117111,0.00080312,3129.3,3128.7,0.43886674]
[1767978120498,0.00080312,3129.3,3128.7,3.6350485]
[1767978120901,0.00080312,3129.3,3128.8,0.94954122]
[1767978121223,0.00080312,3129.3,3128.7,3.6350485]
[1767978121395,0.00080312,3129.3,3128.8,0.94135103]
[1767978121595,0.0008032,3129.7,3128.9,1.39979418]
[1767978121808,0.0008032,3129.7,3129.1,0.94135103]
[1767978122026,3.19628362,3130.4,3129.3,0.94215503]
[1767978122188,6.39076676,3130.4,3129.3,0.94215503]
[1767978122387,0.94983414,3130.3,3129.3,0.000804]
[1767978122608,0.96257928,3130.1,3129.3,0.000804]
[1767978122893,3.19630368,3130.4,3129.3,0.000804]
[1767978123107,6.39080688,3130.4,3129.4,0.91121696]
[1767978123307,0.94160212,3130.3,3129.5,0.251]
[1767978123510,3.95454458,3130.4,3129.5,3.44630616]
[1767978124094,0.76004138,3130.4,3129.5,3.44630616]
[1767978124315,0.002,3130.8,3129.6,0.91121696]
[1767978124500,0.002,3130.8,3130.0,0.91201752]
[1767978124716,3.19608578,3130.8,3130.0,0.00080056]
[1767978125018,0.002,3130.8,3130.0,0.00080056]
[1767978125219,0.002,3130.8,3130.1,0.251]
[1767978125626,0.002,3130.8,3130.1,3.44573495]
[1767978125806,0.002,3130.8,3130.1,0.251]
[1767978126614,0.00120324,3130.1,3130.0,0.00080056]
[1767978127638,3.19417382,3130.7,3130.0,0.00080056]
[1767978127801,6.38834764,3130.7,3130.0,0.00080056]
[1767978128004,4.13577594,3130.7,3130.0,0.00080056]
[1767978128199,0.002,3130.8,3130.0,0.00080056]
[1767978128682,3.19609539,3130.8,3130.0,0.00080056]
[1767978129025,0.002,3130.8,3130.0,0.00080056]
[1767978129242,0.002,3130.8,3130.0,0.91201752]
[1767978130101,0.94360212,3130.8,3130.0,0.00080056]
[1767978130315,0.94160212,3130.6,3130.0,0.00080056]
[1767978130537,0.95434726,3130.6,3130.0,0.00080056]
[1767978131128,1.20434726,3130.6,3130.0,0.00080056]
[1767978131303,0.94160212,3130.3,3129.3,0.000804]
[1767978131643,0.94160212,3130.3,3129.4,3.1954552]
[1767978131811,0.94160212,3130.3,3129.3,3.19636826]
[1767978132142,4.13628616,3130.2,3129.3,0.000804]
[1767978132309,4.55126935,3130.2,3129.3,0.000804]
[1767978133467,0.95434726,3130.1,3129.3,0.000804]
[1767978133758,0.94160212,3129.8,3129.3,0.000804]
[1767978133962,3.44482058,3130.1,3129.3,0.000804]
[1767978134259,0.70544878,3130.0,3129.3,0.000804]
[1767978135729,0.25,3130.1,3129.3,0.000804]
[1767978135948,3.44479275,3130.1,3129.3,3.19640685]
[1767978136181,3.44479275,3130.1,3129.3,0.000804]
[1767978136367,4.38639487,3130.1,3129.3,0.000804]
[1767978136542,4.13639487,3130.1,3129.3,0.000804]
[1767978136743,4.86950582,3130.1,3129.3,0.000804]
[1767978137073,1.67471307,3130.1,3129.3,0.000804]
[1767978137361,0.00080056,3130.4,3129.3,0.91202096]
[1767978137568,0.002,3130.8,3130.0,0.00080064]
[1767978137754,0.002,3130.8,3130.1,0.251]
[1767978137933,0.002,3130.5,3130.2,3.19468404]
[1767978138135,0.002,3130.8,3130.2,6.38936808]
[1767978138468,0.002,3130.8,3130.3,0.66403681]
[1767978138870,0.002,3131.0,3130.3,0.66403681]
[1767978139269,0.002,3131.0,3130.0,0.00080064]
[1767978139270,0.94360212,3131.0,3130.1,0.251]
[1767978139435,0.002,3131.0,3130.1,0.251]
[1767978139770,0.002,3131.0,3130.1,4.35698902]
[1767978140880,0.002,3131.0,3130.0,3.19566148]
[1767978141066,0.002,3131.4,3130.5,0.91121696]
[1767978141246,4.1473076,3131.9,3130.5,0.91121696]
[1767978141448,0.41473076,3131.8,3130.5,0.91121696]
[1767978141939,3.60778977,3131.8,3130.6,6.3885517]
[1767978142275,3.60778977,3131.8,3130.7,0.251]
[1767978142577,0.002,3132.1,3130.8,0.91121696]
[1767978142745,0.01474514,3132.1,3130.8,0.91121696]
[1767978142945,3.20755781,3132.1,3130.8,0.91121696]
[1767978143467,0.01474514,3132.1,3130.8,0.91121696]
[1767978143706,0.002,3132.1,3130.8,0.91121696]
[1767978143839,3.19477272,3132.1,3130.8,0.91121696]
[1767978144340,3.19477272,3132.1,3131.0,0.91121696]
[1767978144341,0.002,3132.1,3131.0,0.91121696]
[1767978144539,0.002,3132.1,3131.1,0.72991565]
[1767978144540,0.33548442,3132.1,3131.1,0.72991565]
[1767978144740,0.33548442,3132.1,3131.2,0.251]
[1767978145242,0.01274514,3131.7,3130.7,3.19413059]
[1767978145663,0.01274514,3131.7,3130.8,0.251]
[1767978145852,0.01274514,3131.5,3130.8,3.44504593]
[1767978146055,0.33548442,3132.1,3130.8,7.89483928]
[1767978146244,3.19284802,3132.0,3131.0,3.19386777]
[1767978146439,0.95434726,3131.7,3130.3,0.91121696]
[1767978146698,0.01274514,3131.7,3130.8,3.1940244]
[1767978147371,0.01274514,3131.8,3130.8,1.55004652]
[1767978147578,0.01274514,3131.9,3130.8,0.91121696]
[1767978147760,0.01274514,3131.7,3130.8,4.10526773]
[1767978148567,3.20598039,3131.7,3130.9,0.251]
[1767978148869,0.01274514,3131.5,3130.9,0.251]
[1767978149250,0.01274514,3131.5,3130.8,0.251]
[1767978149452,0.74810143,3131.5,3130.8,0.251]
[1767978150383,0.74810143,3131.5,3130.4,0.001]
[1767978150384,0.95434726,3131.3,3130.4,0.001]
[1767978150567,3.19366377,3131.2,3130.4,0.252]
[1767978150772,3.92781988,3131.2,3130.4,0.252]
[1767978151355,0.73415611,3131.2,3130.4,3.44646895]
[1767978153287,7.12158289,3131.2,3130.4,0.252]
[1767978153489,0.01274514,3131.1,3130.4,0.252]
[1767978154677,3.20652283,3131.1,3130.4,0.252]
[1767978155293,0.01274514,3131.1,3130.4,0.252]
[1767978155583,3.20652343,3131.1,3130.4,0.252]
[1767978155987,0.01274514,3131.1,3130.4,3.44647311]
[1767978156370,0.93384695,3131.3,3130.4,7.3050684]
[1767978156572,0.74810143,3131.5,3130.5,0.97958067]
[1767978156785,3.19353448,3131.4,3130.6,3.19427585]
[1767978156987,3.19353448,3131.4,3130.6,3.20424978]
[1767978157170,3.19353448,3131.4,3130.6,3.2262186]
[1767978157356,0.002,3131.6,3130.7,0.97958067]
[1767978157863,0.002,3131.6,3130.8,0.97958067]
[1767978158054,0.002,3131.6,3130.9,1.23058067]
[1767978158954,0.002,3131.6,3130.9,4.42450054]
[1767978159283,0.002,3131.6,3131.0,0.76185477]
[1767978160384,0.01474514,3132.1,3131.1,0.99462633]
[1767978160385,0.002,3132.1,3131.1,0.99462633]
[1767978160890,0.002,3132.1,3131.2,6.38732754]
[1767978161085,0.002,3132.1,3131.3,1.71627149]
[1767978161260,0.002,3132.1,3131.4,0.251]
[1767978161656,0.002,3132.1,3131.5,0.97958067]
[1767978161861,0.002,3132.1,3131.4,0.251]
[1767978162082,0.01274514,3132.0,3131.0,0.76185477]
[1767978162384,0.93384695,3131.6,3130.8,0.251]
[1767978162884,0.01274514,3131.4,3130.7,0.001]
[1767978163078,3.20625264,3131.4,3130.8,0.251]
[1767978163277,0.01274514,3131.4,3130.8,0.251]
[1767978164975,0.01274514,3131.6,3130.9,3.19396978]
[1767978165174,6.39895539,3131.8,3130.8,3.78964617]
[1767978166077,3.19307979,3131.8,3130.9,0.97958067]
[1767978166375,0.002,3132.1,3130.9,0.97958067]
[1767978166376,3.19297768,3131.9,3130.9,0.97958067]
[1767978166580,6.38595536,3131.9,3131.0,0.79632986]
[1767978167584,3.19297768,3131.9,3131.0,3.99015447]
[1767978168571,3.20562113,3132.0,3131.0,4.95047296]
[1767978168772,0.002,3132.1,3131.1,0.96031849]
[1767978168983,3.19478654,3132.1,3131.1,0.96031849]
[1767978169183,3.19478654,3132.1,3131.3,3.19356177]
[1767978169366,3.19478654,3132.1,3131.4,0.251]
[1767978169692,0.93440299,3132.0,3131.2,0.81443407]
[1767978169898,0.01274514,3131.8,3131.3,0.251]
[1767978170684,0.93440299,3132.0,3131.3,0.251]
[1767978171398,0.93440299,3131.8,3130.7,4.15545399]
[1767978171597,0.01274514,3131.6,3130.7,0.001]
[1767978171768,0.93440299,3131.6,3130.8,0.251]
[1767978171985,0.01274514,3131.4,3130.8,0.251]
[1767978172182,0.93440299,3131.4,3130.7,0.001]
[1767978172578,0.01274514,3131.6,3130.7,0.001]
[1767978172785,0.01274514,3131.4,3130.7,0.001]
[1767978172971,0.01274514,3131.4,3130.8,0.34462546]
[1767978173372,3.19356177,3131.3,3130.7,0.001]
[1767978173752,0.93440299,3131.2,3130.7,0.001]
[1767978175714,4.12810658,3131.2,3130.7,0.001]
[1767978178901,0.93440299,3131.2,3130.7,0.001]
[1767978179107,4.1280803,3131.2,3130.7,0.001]
[1767978179486,7.32175761,3131.2,3130.7,0.001]
[1767978179685,4.1280803,3131.2,3130.7,0.001]
[1767978180613,0.01274514,3131.2,3130.7,0.001]
[1767978180817,4.11701684,3131.5,3130.7,0.3456374]
[1767978180990,0.01274514,3131.4,3130.7,0.3456374]
[1767978181602,4.11701684,3131.5,3130.7,0.3456374]
[1767978183325,4.11701684,3131.5,3130.7,3.53980707]
[1767978183819,4.11701684,3131.5,3130.7,0.3456374]
[1767978183998,0.01274514,3131.4,3130.7,0.3456374]
[1767978184202,0.01274514,3131.4,3130.8,0.34735734]
[1767978185427,3.2062498,3131.4,3130.8,0.34735734]
[1767978186295,3.2062498,3131.4,3131.1,0.001]
[1767978187123,0.01274514,3131.4,3131.1,0.001]
[1767978187427,3.20620629,3131.4,3131.1,0.001]
[1767978187725,3.20622011,3131.4,3131.1,0.001]
[1767978188525,0.002,3131.5,3131.1,0.001]
[1767978188827,0.002,3131.8,3131.2,1.23137221]
[1767978189206,0.002,3131.8,3131.2,0.69361551]
[1767978189526,0.002,3131.8,3131.2,4.42498759]
[1767978189900,0.002,3131.8,3131.3,0.98037221]
[1767978190101,0.002,3132.1,3131.3,0.98037221]
[1767978190303,0.002,3132.4,3131.5,0.98037221]
[1767978191226,0.002,3132.7,3131.7,0.98037221]
[1767978191393,0.002,3132.7,3131.8,0.98768839]
[1767978191594,0.95447021,3132.5,3131.8,0.98768839]
[1767978191829,0.01274514,3132.3,3131.4,3.19340431]
[1767978192000,0.01274514,3132.1,3131.1,3.19468941]
[1767978192208,0.95447021,3132.1,3131.1,0.001]
[1767978192399,0.95447021,3132.1,3131.2,0.251]
[1767978192595,0.95447021,3131.9,3131.1,0.4185227]
[1767978192795,0.01274514,3131.7,3131.1,0.001]
[1767978193018,0.01274514,3131.7,3131.2,0.251]
[1767978193216,0.01274514,3132.1,3131.3,0.98037221]
[1767978193421,0.01274514,3132.1,3131.3,1.74234727]
[1767978193826,0.95447021,3132.3,3131.3,1.74234727]
[1767978194027,0.94172507,3132.6,3131.4,0.98037221]
[1767978194405,0.002,3132.7,3131.4,0.98037221]
[1767978194607,0.002,3132.7,3131.6,0.98037221]
[1767978194915,0.002,3132.7,3131.7,0.16738026]
[1767978195225,0.94372507,3132.7,3131.8,2.95805084]
[1767978195530,0.94372507,3132.7,3131.6,0.08796405]
[1767978195726,0.94372507,3132.7,3131.8,3.19305084]
[1767978195939,0.94172507,3132.5,3131.1,0.001]
[1767978196112,0.94172507,3132.3,3131.4,3.19343704]
[1767978196312,0.94172507,3132.3,3131.5,3.19335374]
[1767978196636,0.94172507,3132.3,3131.4,3.19341119]
[1767978196825,0.94172507,3132.3,3131.5,3.19331956]
[1767978197021,0.94172507,3132.3,3131.5,3.83200745]
[1767978197226,0.94172507,3132.3,3131.6,3.19322954]
[1767978197828,0.94172507,3132.3,3131.5,3.83201367]
[1767978198343,0.002,3132.0,3131.5,3.83201367]
[1767978199339,0.94372507,3132.0,3131.1,0.001]
[1767978199839,0.94172507,3131.8,3131.1,0.001]
[1767978200002,0.94172507,3131.6,3131.1,0.001]
[1767978200208,0.94172507,3131.5,3131.1,0.001]
[1767978200745,0.25,3131.6,3131.1,0.001]
[1767978200908,0.252,3132.0,3131.2,3.19362274]
[1767978201103,0.94172507,3131.9,3131.1,0.001]
[1767978201331,0.94172507,3131.8,3131.1,0.001]
[1767978201841,0.252,3132.0,3131.1,0.79062043]
[1767978202041,0.252,3132.0,3131.3,0.78962043]
[1767978202247,0.252,3132.0,3131.1,0.001]
[1767978202545,0.252,3132.0,3131.1,0.79062043]
[1767978203241,0.002,3132.0,3131.3,0.78962043]
[1767978203545,0.95447021,3132.5,3131.4,3.19345979]
[1767978203833,0.95447021,3132.1,3131.5,0.63870074]
[1767978204035,0.01274514,3132.1,3131.5,0.63870074]
[1767978204613,0.002,3132.3,3131.5,0.63870074]
[1767978205035,0.002,3132.3,3131.5,1.42832117]
[1767978205222,0.002,3132.3,3131.6,0.78962043]
[1767978205426,0.002,3132.3,3131.7,7.17592817]
[1767978205612,0.002,3132.3,3131.8,0.71759282]
[1767978205806,0.94172507,3132.5,3131.9,0.03192949]
[1767978206012,0.94172507,3132.5,3131.8,0.71759282]
[1767978207134,0.002,3132.7,3131.9,0.78962043]
[1767978207339,0.002,3132.7,3131.8,0.71759282]
[1767978207562,0.002,3132.7,3132.0,3.19284802]
[1767978208518,0.002,3132.7,3132.0,6.38569604]
[1767978208719,0.002,3132.7,3132.0,3.19284802]
[1767978209355,0.94372507,3132.7,3132.0,3.19284802]
[1767978210623,0.94372507,3132.7,3131.7,3.19306975]
[1767978210823,0.94372507,3132.7,3131.8,3.19300898]
[1767978211024,0.002,3132.4,3131.8,6.38606089]
[1767978211218,0.94372507,3132.7,3131.8,6.38606089]
[1767978213437,0.002,3132.7,3131.8,6.38606089]
[1767978213626,0.002,3132.7,3131.8,9.5791128]
[1767978213833,0.91775536,3132.8,3131.9,1.06880402]
[1767978214858,0.91775536,3132.8,3132.0,3.19284802]
[1767978215228,0.91695304,3132.7,3131.9,4.26170973]
[1767978215534,0.91695304,3132.7,3131.9,3.19290571]
[1767978215850,0.91695304,3132.7,3131.9,6.38585567]
[1767978216047,0.01354746,3132.8,3131.9,6.38585567]
[1767978217061,0.01354746,3132.8,3131.8,7.17572425]
[1767978217257,0.91695304,3132.7,3131.9,0.74950312]
[1767978217459,0.92969818,3132.6,3131.8,3.19305191]
[1767978217864,0.91695304,3132.6,3131.8,3.19305191]
[1767978218161,0.7531245,3132.6,3131.8,3.19305191]
[1767978218788,0.7531245,3132.6,3131.7,9.02162652]
[1767978219347,0.91695304,3132.2,3131.4,0.001]
[1767978219563,0.91695304,3132.1,3131.4,0.001]
[1767978219865,0.92969818,3132.1,3131.4,0.001]
[1767978220171,0.92969818,3132.1,3131.4,3.19441032]
[1767978220463,0.25,3132.2,3131.4,3.19441032]
[1767978220683,0.00080232,3132.8,3131.8,0.95344897]
[1767978221463,0.00080232,3132.8,3131.9,7.37124538]
[1767978221667,0.00080232,3132.8,3131.9,7.33934889]
[1767978222846,0.002,3133.1,3132.5,0.95344897]
[1767978223162,0.00282504,3133.2,3132.4,0.0008024]
[1767978223691,0.00282504,3133.2,3132.5,0.63858868]
[1767978224234,0.91977808,3133.2,3132.5,0.63858868]
[1767978224841,0.91977808,3133.2,3132.4,0.0008024]
[1767978225169,0.91695304,3133.0,3132.4,0.0008024]
[1767978225771,0.91695304,3132.9,3132.4,0.0008024]
[1767978227255,3.20451133,3133.1,3132.4,0.0008024]
[1767978228848,0.00282504,3133.2,3132.4,0.95425137]
[1767978230512,0.98080789,3132.5,3132.0,0.001]
[1767978230776,7.36570673,3132.8,3132.0,0.001]
[1767978230958,0.99355303,3132.7,3132.0,0.001]
[1767978231376,0.98080789,3132.7,3132.0,0.001]
[1767978231744,0.0008024,3132.8,3132.0,0.001]
[1767978232482,0.98080789,3132.4,3132.0,0.001]
[1767978232643,0.99355303,3132.3,3131.1,0.95444897]
[1767978232844,0.99355303,3132.3,3131.1,0.001]
[1767978232845,0.99355303,3131.9,3131.1,0.001]
[1767978233081,0.99355303,3131.7,3131.1,0.001]
[1767978233748,0.98080789,3131.7,3131.1,0.001]
[1767978234858,3.19308356,3131.8,3131.1,0.001]
[1767978235373,7.36697501,3131.8,3131.1,0.001]
[1767978235561,0.98080789,3131.4,3130.7,0.001]
[1767978235756,0.00080064,3130.4,3129.6,3.19528342]
[1767978236158,0.00080064,3130.4,3129.6,3.44628342]
[1767978236370,0.00080064,3130.4,3129.9,3.194983]
[1767978236607,0.00080064,3130.4,3129.7,3.63520948]
[1767978236895,0.00080064,3130.4,3129.7,6.8304039]
[1767978237389,0.00080064,3130.4,3129.7,7.78485287]
[1767978237609,0.00080064,3130.4,3129.8,0.95444897]
[1767978237766,0.00080064,3130.4,3129.9,0.77848529]
[1767978238797,3.19366377,3131.2,3130.0,0.95524969]
[1767978239404,3.20610295,3131.5,3130.0,0.95524969]
[1767978239778,7.38026865,3131.5,3130.0,0.95524969]
[1767978239978,0.98080789,3131.4,3130.1,0.81236578]
[1767978240174,0.99355303,3131.3,3130.1,0.81236578]
[1767978240785,3.19366377,3131.2,3130.2,3.19468404]
[1767978241181,0.98080789,3131.6,3130.3,0.95444897]
[1767978241396,3.19335781,3131.5,3130.3,0.95444897]
[1767978241599,3.19335781,3131.5,3130.4,0.75948171]
[1767978242411,3.19335781,3131.5,3129.0,0.001]
[1767978242412,0.98080789,3130.3,3129.0,0.001]
[1767978242609,0.98080789,3130.1,3129.0,0.001]
[1767978242797,0.000804,3129.7,3129.0,0.001]
[1767978243003,0.90108642,3129.7,3129.0,0.001]
[1767978243308,0.000804,3129.7,3129.0,0.001]
[1767978243706,0.000804,3129.7,3129.1,0.31977808]
[1767978244006,0.18379621,3129.9,3129.3,0.0008048]
[1767978244387,0.00080072,3130.4,3129.3,0.0008048]
[1767978244588,0.01354586,3130.4,3129.3,0.0008048]
[1767978245145,0.00080072,3130.4,3129.3,0.0008048]
[1767978245321,0.00080072,3130.4,3128.3,0.00081607]
[1767978245322,0.90028242,3129.2,3128.3,0.00081607]
[1767978246190,0.91302756,3129.1,3128.3,0.00081607]
[1767978246408,4.09610932,3129.1,3128.3,0.00081607]
[1767978247124,0.0008032,3129.3,3128.3,0.00081607]
[1767978247300,3.19642053,3129.3,3128.3,0.00081607]
[1767978247501,3.19442054,3129.3,3128.9,0.00080328]
[1767978247825,3.19442054,3129.3,3127.5,0.001]
[1767978247826,0.90028242,3128.4,3127.5,0.001]
[1767978248001,0.00081607,3128.7,3127.5,0.001]
[1767978248509,3.19703175,3128.7,3127.5,0.001]
[1767978248819,7.29352985,3128.7,3127.5,0.001]
[1767978249042,7.29352985,3128.7,3127.5,0.32086333]
[1767978249234,0.90028242,3128.6,3127.5,0.001]
[1767978250448,0.90028242,3128.2,3127.5,0.001]
[1767978253447,7.2939399,3128.1,3127.5,0.001]
[1767978253751,0.01274514,3128.5,3127.5,0.001]
[1767978253752,3.19644802,3128.5,3127.5,0.001]
[1767978253949,0.00081607,3128.7,3127.5,0.95544897]
[1767978255455,0.00081607,3128.7,3127.6,9.59201943]
[1767978255759,0.00081607,3128.7,3127.7,1.05474684]
[1767978256066,0.00080328,3129.3,3127.7,1.05474684]
[1767978256067,3.19644266,3129.3,3128.3,0.00081688]
[1767978256350,4.09672508,3129.3,3128.3,0.00081688]
[1767978256755,0.9010857,3129.3,3128.3,0.00081688]
[1767978256966,0.90028242,3128.8,3127.7,1.05474684]
[1767978257167,0.00081688,3128.7,3127.5,3.44944204]
[1767978258363,0.00081688,3128.7,3127.5,6.64688408]
[1767978260364,0.00081688,3128.7,3127.5,7.60133305]
[1767978262174,0.00081688,3128.7,3127.5,10.79877509]
[1767978262876,0.00081688,3128.7,3127.5,7.60133305]
[1767978263073,0.00081688,3128.7,3127.6,0.76013331]
[1767978263660,0.00081688,3128.7,3127.7,6.39447516]
[1767978264105,0.90028242,3128.9,3127.7,6.39447516]
[1767978264106,0.90028242,3128.9,3127.7,9.59171274]
[1767978264305,0.00080328,3129.3,3128.3,0.00081769]
[1767978264520,0.90028242,3129.2,3128.4,0.251]
[1767978265792,0.90028242,3129.2,3128.5,6.39284]
[1767978265988,0.90028242,3129.2,3128.6,0.664384]
[1767978266695,0.85195138,3129.2,3128.6,0.664384]
[1767978266910,0.81973042,3129.2,3128.6,0.664384]
[1767978267096,0.00080328,3129.3,3128.6,0.664384]
[1767978268238,0.00080328,3129.3,3128.6,3.86069487]
[1767978268449,0.00080328,3129.3,3128.7,0.38606949]
[1767978269932,0.002,3129.0,3128.7,0.38606949]
[1767978270136,0.00280328,3129.3,3128.7,0.38606949]
[1767978270944,0.00280328,3129.3,3128.7,3.1961964]
[1767978271110,0.0008048,3129.7,3128.9,0.00080336]
[1767978271313,0.0008048,3129.7,3129.0,0.251]
[1767978273043,0.0008048,3129.7,3129.0,3.44688819]
[1767978278854,0.0008048,3129.7,3129.0,6.64279742]
[1767978279058,0.002,3130.1,3129.3,0.0008056]
[1767978280235,0.002,3130.1,3129.3,0.9839199]
[1767978282128,0.002,3130.1,3129.4,6.39100146]
[1767978282330,0.002,3129.8,3129.5,0.251]
[1767978282658,0.002,3130.1,3129.5,0.251]
[1767978282862,0.002,3130.1,3129.6,0.66420015]
[1767978283357,0.98698182,3130.1,3129.6,0.66420015]
[1767978283560,0.98698182,3130.1,3129.3,3.19735843]
[1767978283561,0.98698182,3130.1,3129.3,0.0018056]
[1767978283860,0.98698182,3130.1,3129.3,0.2528056]
[1767978284264,0.98498182,3129.9,3129.3,0.0018056]
[1767978286484,0.98498182,3129.7,3129.3,0.0018056]
[1767978286657,1.72249847,3129.6,3129.3,0.0018056]
[1767978286961,0.73751665,3129.6,3129.3,0.0018056]
[1767978288170,3.93284276,3129.6,3129.3,0.0018056]
[1767978288535,0.73751665,3129.6,3129.3,0.0018056]
[1767978288852,3.19512607,3129.8,3129.3,0.0018056]
[1767978290262,4.18002281,3129.9,3129.3,0.0018056]
[1767978290462,3.19504099,3129.9,3129.3,0.0018056]
[1767978291777,6.39008198,3129.9,3129.3,0.0018056]
[1767978294037,0.002,3129.5,3129.3,0.0018056]
[1767978300193,0.002,3129.5,3129.3,0.9825233]
[1767978300492,0.002,3130.1,3129.5,0.9807177]
[1767978300691,0.00280072,3130.4,3129.9,0.9807177]
[1767978300988,0.002,3130.6,3130.2,0.9807177]
[1767978301293,0.002,3130.6,3130.3,0.251]
[1767978304059,0.002,3130.6,3130.3,0.24978664]
[1767978305366,0.002,3130.6,3130.3,0.59423896]
[1767978305808,0.002,3130.6,3130.3,0.24978664]
[1767978310719,0.002,3130.6,3130.3,0.24860009]
[1767978312008,0.96045476,3130.6,3130.3,0.24860009]
[1767978312205,0.96045476,3130.6,3130.0,0.0008008]
[1767978312428,0.96045476,3130.6,3130.1,0.251]
[1767978312628,0.95845476,3130.3,3129.9,0.251]
[1767978312855,0.0008008,3130.4,3129.3,0.0018056]
[1767978312856,0.95845476,3129.8,3129.3,0.0018056]
[1767978313539,0.95845476,3129.6,3128.3,0.00081769]
[1767978313751,0.95845476,3129.6,3128.3,3.19743888]
[1767978313909,0.95845476,3129.6,3128.6,0.251]
[1767978314499,0.0008056,3129.7,3128.6,0.251]
[1767978314500,0.0008056,3129.7,3128.7,3.19617676]
[1767978314733,0.0008056,3129.7,3128.9,0.32050137]
[1767978315117,0.0008056,3129.7,3128.9,0.00080336]
[1767978316809,0.0008056,3129.7,3128.9,3.19680696]
[1767978317196,0.0008056,3129.7,3129.0,0.90220389]
[1767978317402,0.0008056,3129.7,3129.1,0.251]
[1767978318618,3.1694265,3130.0,3129.3,0.0008064]
[1767978319038,3.1947861,3130.1,3129.3,0.0008064]
[1767978319230,4.15317504,3130.2,3129.3,0.0008064]
[1767978319536,4.88803243,3130.2,3129.3,0.0008064]
[1767978320228,0.002,3130.3,3129.3,0.90301029]
[1767978321147,0.002,3130.3,3129.4,6.39100146]
[1767978321315,0.002,3130.3,3129.5,0.90220389]
[1767978321517,0.002,3130.3,3129.6,0.251]
[1767978322046,0.002,3130.3,3129.4,6.39100146]
[1767978322342,0.002,3130.3,3129.7,0.251]
[1767978322751,0.002,3130.3,3129.8,0.90220389]
[1767978322970,0.002,3130.3,3129.7,0.251]
[1767978322971,0.002,3131.1,3130.1,0.90220389]
[1767978323259,0.002,3131.1,3130.3,3.19458198]
[1767978323459,0.002,3131.1,3130.3,6.38916396]
[1767978323630,0.002,3131.1,3130.4,0.6640164]
[1767978323832,0.002,3131.7,3130.5,0.90220389]
[1767978324156,0.002,3131.7,3130.9,0.90220389]
[1767978324463,0.002,3131.9,3131.1,0.90220389]
[1767978325473,0.002,3131.9,3130.8,0.90220389]
[1767978325620,0.002,3131.9,3130.9,0.251]
[1767978326169,0.002,3131.9,3130.9,3.44495504]
[1767978326351,0.002,3131.9,3130.8,4.096246]
[1767978326564,0.002,3131.9,3131.0,0.251]
[1767978327363,0.6387696,3131.8,3131.0,0.251]
[1767978327864,0.6387696,3131.8,3131.1,0.251]
[1767978329431,3.19315387,3131.7,3131.1,0.251]
[1767978331668,6.38630774,3131.7,3131.1,0.251]
[1767978331878,3.19315387,3131.7,3131.1,0.251]
[1767978332073,0.002,3131.5,3131.1,0.251]
[1767978334850,0.002,3131.8,3131.3,0.251]
[1767978336237,0.002,3131.8,3131.4,0.251]
[1767978339642,0.002,3131.8,3129.7,7.64404107]
[1767978339643,0.93076307,3131.7,3130.7,0.99615364]
[1767978339857,0.93076307,3131.7,3130.8,0.251]
[1767978340042,0.93076307,3131.7,3130.9,0.251]
[1767978340647,0.93076307,3131.7,3130.4,1.66017004]
[1767978340858,0.94350821,3131.7,3130.5,0.251]
[1767978341043,0.93076307,3131.5,3130.4,0.99615364]
[1767978341247,0.93076307,3131.5,3130.0,3.19562107]
[1767978341248,0.93076307,3131.5,3130.5,0.251]
[1767978342147,0.94350821,3131.5,3130.0,0.00080088]
[1767978342351,0.93076307,3131.2,3130.0,0.00080088]
[1767978342565,0.93076307,3131.0,3130.0,0.00080088]
[1767978342759,0.93076307,3131.0,3130.0,0.25180088]
[1767978343154,6.38793956,3130.9,3130.0,0.25180088]
[1767978343355,0.73187026,3130.8,3130.0,0.25180088]
[1767978344474,0.73187026,3130.8,3130.3,0.001]
[1767978344975,3.19396978,3130.9,3130.3,0.99715364]